[Event "Int SVK-ch Open 2020"]
[Site "Drienica"]
[Date "2020.08.13"]
[Round "7.7"]
[White "Socko, Weronika"]
[Black "Hlavac, Peter"]
[Result "1/2-1/2"]
[ECO "A56"]
[WhiteElo "1741"]
[BlackElo "1952"]
[Annotator "ChessBase"]
[PlyCount "118"]
[EventDate "2020.08.07"]
[EventType "swiss"]
[EventCountry "SVK"]
[SourceTitle "playchess.com"]
[Source "ChessBase"]
[SourceQuality "1"]
[TimeControl "40/5400+30:1800+30"]

1. d4 {[%emt 0:00:00]} Nf6 {[%emt 0:00:00]} 2. c4 {[%emt 0:00:00]} c5 {[%emt 0:00:09]} 3. e3 {[%emt 0:00:38]} g6 {[%emt 0:01:34]} 4. Nf3 {[%emt 0:00:11]} Bg7 {[%emt 0:00:27]} 5. Nc3 {[%emt 0:00:13]} d5 {[%emt 0:00:42]} 6. dxc5 {[%emt 0:00:47]} Qa5 {[%emt 0:00:23]} 7. Bd2 {[%emt 0:08:19]} dxc4 {[%emt 0:00:14]} 8. Bxc4 {[%emt 0:01:47]} Qxc5 {[%emt 0:00:15]} 9. Qb3 {[%emt 0:02:23]} O-O {[%emt 0:01:31]} 10. O-O {[%emt 0:01:16]} Nc6 11. Qb5 {[%emt 0:01:10]} Qxb5 {[%emt 0:06:05]} 12. Bxb5 {[%emt 0:01:10]} Bd7 {[%emt 0:02:31]} 13. Rac1 {[%emt 0:01:50]} Rfd8 {[%emt 0:02:25]} 14. Rfd1 {[%emt 0:01:02]} a6 {[%emt 0:04:36]} 15. Bc4 {[%emt 0:01:51]} Bg4 {[%emt 0:01:49]} 16. Be2 {[%emt 0:05:11]} Rd7 {[%emt 0:03:06]} 17. h3 {[%emt 0:06:21]} Bxf3 18. Bxf3 Ne5 {[%emt 0:11:09]} 19. Be2 {[%emt 0:03:08]} Rad8 {[%emt 0:00:16]} 20. Be1 {[%emt 0:05:09]} Nd3 {[%emt 0:02:10]} 21. Bxd3 {[%emt 0:00:20]} Rxd3 {[%emt 0:00:07]} 22. Rxd3 {[%emt 0:00:30]} Rxd3 {[%emt 0:00:05]} 23. Kf1 {[%emt 0:00:31]} Ne8 {[%emt 0:06:49]} 24. Ke2 {[%emt 0:01:20]} Rd8 {[%emt 0:01:46]} 25. Rc2 {[%emt 0:03:45]} f5 {[%emt 0:03:10]} 26. e4 {[%emt 0:04:13]} Kf7 {[%emt 0:02:53]} 27. f4 {[%emt 0:07:24]} e5 {[%emt 0:02:46]} 28. fxe5 {[%emt 0:01:23]} Bxe5 {[%emt 0:00:10]} 29. exf5 {[%emt 0:00:43]} gxf5 {[%emt 0:00:09]} 30. Nd1 {[%emt 0:01:09]} Nf6 {[%emt 0:05:40]} 31. Ne3 {[%emt 0:01:57]} Ke6 {[%emt 0:03:57]} 32. b3 {[%emt 0:03:12]} b5 {[%emt 0:02:37]} 33. Rc6+ {[%emt 0:01:50]} Rd6 {[%emt 0:00:10]} 34. Rxd6+ {[%emt 0:00:45]} Bxd6 {[%emt 0:00:15]} 35. Kf3 {[%emt 0:02:08]} h5 {[%emt 0:00:42]} 36. Nc2 {[%emt 0:02:26]} Ne4 {[%emt 0:01:38]} 37. Nb4 {[%emt 0:04:58]} Ng5+ {[%emt 0:03:37]} 38. Ke2 {[%emt 0:02:34]} Bxb4 {[%emt 0:02:07]} 39. Bxb4 {[%emt 0:00:01]} Ke5 {[%emt 0:00:25]} 40. Kd3 {[%emt 0:02:29]} Ne4 {[%emt 0:00:48]} 41. Ba5 {[%emt 0:31:57]} Nc5+ {[%emt 0:40:30]} 42. Ke3 {[%emt 0:00:48]} f4+ {[%emt 0:01:06]} 43. Kf3 {[%emt 0:00:31]} Nd3 {[%emt 0:00:17]} 44. Bd2 {[%emt 0:01:05]} Kf5 {[%emt 0:00:57]} 45. g3 {[%emt 0:04:38]} Ne5+ {[%emt 0:04:21]} 46. Kf2 {[%emt 0:00:41]} fxg3+ {[%emt 0:01:17]} 47. Kxg3 {[%emt 0:00:16]} h4+ {[%emt 0:00:36]} 48. Kf2 {[%emt 0:00:55]} Ke4 {[%emt 0:00:19]} 49. Bg5 {[%emt 0:02:48]} Ng6 {[%emt 0:01:18]} 50. Bf6 {[%emt 0:02:05]} Nf4 {[%emt 0:00:32]} 51. Bxh4 {[%emt 0:00:57]} Nxh3+ {[%emt 0:00:13]} 52. Ke1 {[%emt 0:04:42]} Kd3 {[%emt 0:02:33]} 53. Kd1 {[%emt 0:00:52]} Nf4 {[%emt 0:01:27]} 54. Kc1 {[%emt 0:01:00]} Nd5 {[%emt 0:01:01]} 55. Kb2 {[%emt 0:00:46]} b4 {[%emt 0:07:20]} 56. Bg3 {[%emt 0:03:31]} Ne3 {[%emt 0:02:53]} 57. Bd6 {[%emt 0:01:59]} Nd1+ {[%emt 0:00:55]} 58. Kc1 {[%emt 0:01:31]} Nc3 {[%emt 0:00:12]} 59. Kb2 {[%emt 0:00:05]} Nd1+ {[%emt 0:00:15]} 1/2-1/2

[Event "Int SVK-ch Open 2020"]
[Site "Drienica"]
[Date "2020.08.13"]
[Round "7.8"]
[White "Demeter, Peter"]
[Black "Konyves, Almos"]
[Result "1-0"]
[ECO "A07"]
[WhiteElo "2139"]
[BlackElo "2090"]
[Annotator "RC"]
[PlyCount "47"]
[EventDate "2020.08.07"]
[EventType "swiss"]
[EventCountry "SVK"]
[SourceTitle "playchess.com"]
[Source "ChessBase"]
[SourceQuality "1"]
[TimeControl "40/5400+30:1800+30"]

1. Nf3 {[%emt 0:00:00]} d5 {[%emt 0:00:00]} 2. g3 {[%emt 0:00:00]} c6 {[%emt 0:00:14]} 3. Bg2 {[%emt 0:00:00]} Bg4 {[%emt 0:00:21]} 4. d3 {[%emt 0:01:12]} Nd7 {[%emt 0:00:48]} 5. Nbd2 {[%emt 0:01:28]} e5 {[%emt 0:01:59]} 6. h3 {[%emt 0:00:37]} Be6 {[%emt 0:01:55]} 7. c4 {[%emt 0:02:11]} f6 {[%emt 0:03:17]} 8. cxd5 {[%emt 0:06:06]} cxd5 {[%emt 0:01:03]} 9. O-O {[%emt 0:01:12]} Nb6 {[%emt 0:05:41]} 10. e4 {[%emt 0:02:20]} Qd7 {[%emt 0:04:19]} 11. d4 {[%emt 0:02:10]} exd4 {[%emt 0:05:35]} 12. Nxd4 {[%emt 0:00:11]} Bf7 {[%emt 0:03:10]} 13. a4 {[%emt 0:08:08]} Ne7 {[%emt 0:07:53]} 14. a5 {[%emt 0:01:22]} Nc4 {[%emt 0:04:48]} 15. Nxc4 {[%emt 0:07:02]} dxc4 {[%emt 0:00:08]} 16. a6 {[%emt 0:00:13]} b6 {[%emt 0:05:01]} 17. e5 {[%emt 0:02:34]} Rd8 {[%emt 0:03:24]} 18. exf6 {[%emt 0:01:07]} gxf6 {[%emt 0:00:39]} 19. Re1 {[%emt 0:02:52]} Bg7 {[%emt 0:09:59]} 20. Bc6 {[%emt 0:00:18]} Qxc6 {[%emt 0:00:10]} 21. Rxe7+ {[%emt 0:00:19]} Kf8 {[%emt 0:00:04]} 22. Rxf7+ {[%emt 0:00:22]} Kg8 {[%emt 0:01:18]} 23. Rxg7+ {[%emt 0:00:19]} Kf8 {[%emt 0:00:07]} 24. Rf7+ {[%emt 0:00:12]} 1-0

[Event "Int SVK-ch Open 2020"]
[Site "Drienica"]
[Date "2020.08.13"]
[Round "7.8"]
[White "Steiniger, Florian"]
[Black "Malinovsky, Jozef"]
[Result "1-0"]
[ECO "B20"]
[WhiteElo "1889"]
[BlackElo "1698"]
[Annotator "NA"]
[PlyCount "116"]
[EventDate "2020.08.07"]
[EventType "swiss"]
[EventCountry "SVK"]
[SourceTitle "playchess.com"]
[Source "ChessBase"]
[SourceQuality "1"]
[TimeControl "40/5400+30:1800+30"]

1. e4 {[%emt 0:00:00]} c5 {[%emt 0:00:00]} 2. c4 {[%emt 0:00:00]} Nc6 {[%emt 0:00:06]} 3. Nc3 {[%emt 0:00:00]} g6 {[%emt 0:01:12]} 4. d3 {[%emt 0:00:06]} Bg7 {[%emt 0:00:08]} 5. g3 {[%emt 0:00:19]} d6 {[%emt 0:00:39]} 6. Bg2 {[%emt 0:00:20]} e5 {[%emt 0:02:09]} 7. Nge2 {[%emt 0:00:55]} Rb8 {[%emt 0:00:49] A36: Symmetrical English vs ...g6: 4 Bg2 Bg7.} 8. O-O {[%emt 0:00:45]} Nge7 {[%emt 0:02:11]} 9. Be3 {[%emt 0:02:32]} O-O {[%emt 0:03:31]} 10. Qd2 {[%emt 0:01:27]} Nd4 {[%emt 0:02:44]} 11. Bh6 {[%emt 0:02:58] [#]} f5 $146 {[%emt 0:04:48]} ({Predecessor:} 11... a6 12. Bxg7 Kxg7 13. f4 f5 14. Rf2 b5 15. Raf1 Qb6 16. fxe5 dxe5 17. exf5 Bxf5 {1-0 (51) Sohraby,A (1996)-Strathoff,M (1925) Ruhrgebiet 2005}) 12. Bxg7 {[%emt 0:03:04]} Kxg7 {[%emt 0:00:11]} 13. f4 {[%emt 0:01:15]} Nec6 {[%emt 0:03:09]} 14. Nxd4 {[%emt 0:02:29]} Nxd4 {[%emt 0:01:15]} 15. Ne2 {[%emt 0:02:15]} fxe4 {[%emt 0:01:42]} 16. dxe4 {[%emt 0:01:02]} b5 {[%emt 0:02:07]} 17. Nxd4 {[%emt 0:02:11]} cxd4 {[%emt 0:00:12]} 18. cxb5 {[%emt 0:06:29]} Rxb5 {[%emt 0:00:00]} 19. b3 {[%emt 0:01:45]} Qe7 {[%emt 0:04:56]} 20. Rac1 {[%emt 0:01:32]} Bb7 {[%emt 0:01:17]} 21. Rc4 {[%emt 0:11:51]} Ba6 {[%emt 0:01:56]} 22. Rfc1 {[%emt 0:01:03]} Rc5 {[%emt 0:02:43]} 23. Rxc5 {[%emt 0:01:49]} dxc5 {[%emt 0:00:00]} 24. Qa5 {[%emt 0:00:22]} Be2 {[%emt 0:04:49]} 25. Rxc5 {[%emt 0:01:18]} Rf7 {[%emt 0:00:47]} 26. Rxe5 {[%emt 0:00:26]} Qb7 {[%emt 0:01:07]} 27. Re6 {[%emt 0:04:08]} Qc7 {[%emt 0:00:21] [#]} 28. Qxc7 $1 {[%emt 0:02:31]} Rxc7 {[%emt 0:00:01]} 29. Rd6 {[%emt 0:01:08]} d3 {[%emt 0:00:07]} 30. e5 {[%emt 0:01:13]} Rc2 {[%emt 0:00:58]} 31. Be4 {[%emt 0:02:58]} Rc1+ $2 {[%emt 0:00:20]} (31... Rxa2 32. Bxd3 Bxd3) 32. Kf2 {[%emt 0:00:06]} Rc2 {[%emt 0:01:54]} 33. Ke3 {[%emt 0:00:19]} Rxa2 {[%emt 0:00:11]} 34. Bxd3 {[%emt 0:00:09]} Bxd3 {[%emt 0:00:02]} 35. Rxd3 {[%emt 0:00:14]} Ra3 {[%emt 0:00:21]} 36. Ke4 {[%emt 0:00:29]} Ra6 {[%emt 0:00:45]} 37. g4 {[%emt 0:00:23]} h5 {[%emt 0:00:12]} 38. gxh5 {[%emt 0:00:24]} gxh5 {[%emt 0:00:02]} 39. f5 {[%emt 0:00:09]} Ra1 {[%emt 0:00:48]} 40. f6+ {[%emt 0:01:16]} Kf7 {[%emt 0:00:19]} 41. Rf3 {[%emt 0:30:47]} (41. Rd7+ $142 Ke8 42. e6 Rf1 43. f7+ Kf8 44. Rxa7 Rf2 45. Ra8+ Ke7 46. Re8+ Kd6 47. f8=Q+ Rxf8 48. Rxf8) 41... Re1+ {[%emt 0:30:42]} 42. Kf5 {[%emt 0:00:07]} a5 {[%emt 0:00:17]} 43. Rd3 $18 {[%emt 0:03:25]} Rf1+ {[%emt 0:00:15]} 44. Ke4 {[%emt 0:00:19]} Re1+ {[%emt 0:00:10]} 45. Kd5 {[%emt 0:00:19]} Re2 {[%emt 0:00:26]} 46. h3 {[%emt 0:00:28]} Re1 {[%emt 0:00:15]} 47. Kd6 {[%emt 0:01:09]} Re2 {[%emt 0:00:05]} 48. Rd5 {[%emt 0:01:28]} Ra2 {[%emt 0:00:39]} 49. Kd7 {[%emt 0:06:01]} a4 {[%emt 0:01:43]} 50. e6+ {[%emt 0:01:34]} Kxf6 {[%emt 0:00:54]} 51. e7 {[%emt 0:00:06]} axb3 {[%emt 0:00:21]} 52. e8=Q {[%emt 0:00:32]} Ra7+ {[%emt 0:01:23]} 53. Kc6 {[%emt 0:00:08]} Ra6+ {[%emt 0:00:42]} 54. Kb5 {[%emt 0:00:20]} b2 {[%emt 0:00:17]} 55. Qe5+ {[%emt 0:00:06]} Kg6 {[%emt 0:00:28]} 56. Qg5+ {[%emt 0:00:28]} Kf7 {[%emt 0:00:04]} 57. Qxh5+ {[%emt 0:00:44]} Rg6 {[%emt 0:00:47]} 58. Rd7+ {[%emt 0:00:51]} Kf6 1-0

[Event "Int SVK-ch Open 2020"]
[Site "Drienica"]
[Date "2020.08.13"]
[Round "7.9"]
[White "Panko Eduard ml."]
[Black "Kravec, Patrik"]
[Result "1/2-1/2"]
[ECO "A01"]
[WhiteElo "2007"]
[BlackElo "2119"]
[Annotator "ChessBase"]
[PlyCount "32"]
[EventDate "2020.08.07"]
[EventType "swiss"]
[EventCountry "SVK"]
[SourceTitle "playchess.com"]
[Source "ChessBase"]
[SourceQuality "1"]
[TimeControl "40/5400+30:1800+30"]

1. b3 {[%emt 0:00:00]} e5 {[%emt 0:03:56]} 2. Bb2 {[%emt 0:00:00]} d6 {[%emt 0:01:24]} 3. g3 {[%emt 0:00:24]} g6 {[%emt 0:03:19]} 4. Bg2 {[%emt 0:00:14]} Bg7 {[%emt 0:00:19]} 5. c4 {[%emt 0:00:48]} Ne7 {[%emt 0:00:27]} 6. Nc3 {[%emt 0:01:34]} O-O {[%emt 0:00:23]} 7. d3 {[%emt 0:00:44]} f5 {[%emt 0:01:19]} 8. Qd2 {[%emt 0:07:24]} Nd7 {[%emt 0:04:44]} 9. e3 {[%emt 0:04:11]} Nf6 {[%emt 0:02:28]} 10. Nge2 {[%emt 0:06:20]} c6 {[%emt 0:02:44]} 11. d4 {[%emt 0:06:23]} e4 {[%emt 0:13:03]} 12. h4 {[%emt 0:00:49]} Rb8 {[%emt 0:08:11]} 13. Nf4 {[%emt 0:02:39]} b5 {[%emt 0:04:27]} 14. Bf1 {[%emt 0:02:46]} a6 {[%emt 0:07:23]} 15. Be2 {[%emt 0:04:08]} Qb6 {[%emt 0:06:14]} 16. h5 {[%emt 0:08:30]} Bh8 {[%emt 0:08:33]} 1/2-1/2

[Event "Int SVK-ch Open 2020"]
[Site "Drienica"]
[Date "2020.08.13"]
[Round "7.9"]
[White "Bakalar, Jan"]
[Black "Sedlak, Mikulas"]
[Result "1-0"]
[ECO "B01"]
[WhiteElo "1896"]
[BlackElo "1573"]
[Annotator "NA"]
[PlyCount "49"]
[EventDate "2020.08.07"]
[EventType "swiss"]
[EventCountry "SVK"]
[SourceTitle "playchess.com"]
[Source "ChessBase"]
[SourceQuality "1"]
[TimeControl "40/5400+30:1800+30"]

1. e4 {[%emt 0:00:00]} d5 {[%emt 0:00:00]} 2. exd5 {[%emt 0:00:00]} Nf6 {[%emt 0:00:00]} 3. d4 {[%emt 0:00:11]} Nxd5 {[%emt 0:00:00]} 4. c4 {[%emt 0:00:47]} Nb6 {[%emt 0:00:35]} 5. Nc3 {[%emt 0:00:34]} c6 {[%emt 0:01:23]} 6. Be3 {[%emt 0:01:00] B01: Scandinavian Defence.} e6 {[%emt 0:01:20]} 7. Nf3 {[%emt 0:00:56] [#]} Be7 $146 {[%emt 0:00:48]} ({Predecessor:} 7... Bb4 8. Rc1 O-O 9. Bd3 f5 10. Qd2 Be7 11. Ne5 N6d7 12. f4 c5 13. d5 Nf6 {½-½ (49) Yang,K-Morris,B San Diego 2014}) 8. Qc2 {[%emt 0:00:57]} N8d7 {[%emt 0:01:14]} 9. O-O-O {[%emt 0:01:04]} Nf6 {[%emt 0:01:12]} 10. h3 {[%emt 0:00:55]} a5 {[%emt 0:02:25]} 11. g4 {[%emt 0:00:55]} Qc7 {[%emt 0:03:07]} 12. Bd3 {[%emt 0:03:30]} g6 {[%emt 0:02:31]} 13. Rhg1 {[%emt 0:02:54]} Bd7 {[%emt 0:00:32]} 14. Ne5 {[%emt 0:02:14]} Rg8 {[%emt 0:04:32]} 15. Bf4 {[%emt 0:04:07]} Qd8 {[%emt 0:02:15]} 16. Be3 {[%emt 0:06:07]} Bc8 {[%emt 0:02:03]} 17. Qe2 {[%emt 0:01:06]} Nfd7 {[%emt 0:03:23]} 18. f4 {[%emt 0:06:14]} f6 {[%emt 0:02:04]} 19. Nxd7 {[%emt 0:07:19]} Bxd7 {[%emt 0:02:51]} 20. f5 {[%emt 0:07:05]} Qc7 {[%emt 0:00:48]} 21. fxe6 {[%emt 0:04:33]} Bxe6 {[%emt 0:02:06] [#]} 22. d5 $1 {[%emt 0:00:49]} cxd5 {[%emt 0:01:06]} 23. Bxb6 {[%emt 0:00:09]} Qxb6 {[%emt 0:00:53]} 24. cxd5 {[%emt 0:00:32]} Bd7 {[%emt 0:04:39] [#]} 25. d6 $18 {[%emt 0:01:49] Pin} 1-0

[Event "Int SVK-ch Open 2020"]
[Site "Drienica"]
[Date "2020.08.15"]
[Round "7.10"]
[White "Buran, Jaroslav"]
[Black "Panko Eduard st."]
[Result "0-1"]
[ECO "A41"]
[WhiteElo "2098"]
[BlackElo "1958"]
[Annotator "ChessBase"]
[PlyCount "84"]
[EventDate "2020.08.07"]
[EventType "swiss"]
[EventCountry "SVK"]
[TimeControl "40/5400+30:1800+30"]

1. d4 {[%emt 0:00:00]} d6 {[%emt 0:00:47]} 2. c4 {[%emt 0:00:38]} e5 {[%emt 0:00:18]} 3. Nf3 {[%emt 0:00:24]} e4 {[%emt 0:00:41]} 4. Ng5 {[%emt 0:02:43]} f5 {[%emt 0:00:29]} 5. f3 {[%emt 0:01:11]} Be7 {[%emt 0:00:54]} 6. Nh3 {[%emt 0:01:09]} Nf6 {[%emt 0:01:12]} 7. Nc3 {[%emt 0:00:17]} c6 {[%emt 0:02:26]} 8. Bg5 {[%emt 0:04:14]} Nbd7 {[%emt 0:01:13]} 9. Qc2 {[%emt 0:03:10]} d5 {[%emt 0:00:59]} 10. Nf4 {[%emt 0:07:07]} Qa5 {[%emt 0:12:19]} 11. e3 {[%emt 0:04:18]} Nb6 {[%emt 0:11:56]} 12. c5 {[%emt 0:02:20]} Nbd7 {[%emt 0:00:35]} 13. a3 {[%emt 0:06:54]} Kf7 {[%emt 0:00:38]} 14. fxe4 {[%emt 0:01:47]} fxe4 {[%emt 0:02:35]} 15. Be2 {[%emt 0:03:16]} h6 {[%emt 0:01:10]} 16. Bxf6 {[%emt 0:01:44]} Nxf6 {[%emt 0:02:30]} 17. O-O {[%emt 0:00:09]} g6 {[%emt 0:01:04]} 18. Rf2 {[%emt 0:06:43]} Kg7 {[%emt 0:01:17]} 19. Raf1 {[%emt 0:00:46]} Rf8 {[%emt 0:00:49]} 20. b4 {[%emt 0:01:57]} Qc7 {[%emt 0:03:26]} 21. Qd1 {[%emt 0:01:26]} Bd7 {[%emt 0:03:03]} 22. b5 {[%emt 0:05:25]} Qc8 {[%emt 0:00:39]} 23. h3 {[%emt 0:02:05]} Nh7 {[%emt 0:03:06]} 24. Nxg6 {[%emt 0:03:36]} Rxf2 {[%emt 0:00:39]} 25. Rxf2 {[%emt 0:00:20]} Kxg6 {[%emt 0:16:49]} 26. Bh5+ {[%emt 0:00:31]} Kg7 {[%emt 0:15:37]} 27. Rf7+ {[%emt 0:00:09]} Kh8 {[%emt 0:00:11]} 28. Rxe7 {[%emt 0:00:22]} Qd8 {[%emt 0:01:09]} 29. Re5 {[%emt 0:03:42]} Qh4 {[%emt 0:02:07]} 30. Bg4 {[%emt 0:00:42]} Nf6 {[%emt 0:02:08]} 31. Bxd7 {[%emt 0:00:48]} Nxd7 {[%emt 0:00:12]} 32. Rh5 {[%emt 0:01:34]} Qg3 {[%emt 0:03:39]} 33. Rxh6+ {[%emt 0:02:18]} Kg7 {[%emt 0:00:07]} 34. Rd6 {[%emt 0:00:14]} Qxe3+ {[%emt 0:00:34]} 35. Kh1 {[%emt 0:00:29]} Nf6 {[%emt 0:00:08]} 36. bxc6 {[%emt 0:01:48]} bxc6 {[%emt 0:00:24]} 37. Ne2 {[%emt 0:04:14]} Ng4 {[%emt 0:02:19]} 38. Ng3 {[%emt 0:00:58]} Nf2+ {[%emt 0:00:11]} 39. Kh2 {[%emt 0:00:11]} Qxg3+ {[%emt 0:01:21]} 40. Kxg3 {[%emt 0:00:02]} Nxd1 {[%emt 0:00:09]} 41. Rxc6 {[%emt 0:30:30]} Re8 {[%emt 0:30:13]} 42. Rc7+ {[%emt 0:00:03]} Kg8 {[%emt 0:00:23]} 0-1

[Event "Int SVK-ch Open 2020"]
[Site "Drienica"]
[Date "2020.08.13"]
[Round "7.10"]
[White "Stanko, Ivan"]
[Black "Ivanecka, Natalia"]
[Result "0-1"]
[ECO "C44"]
[WhiteElo "1848"]
[BlackElo "1641"]
[Annotator "NA"]
[PlyCount "36"]
[EventDate "2020.08.07"]
[EventType "swiss"]
[EventCountry "SVK"]
[SourceTitle "playchess.com"]
[Source "ChessBase"]
[SourceQuality "1"]
[TimeControl "40/5400+30:1800+30"]

1. e4 {[%emt 0:00:00]} e5 {[%emt 0:12:26]} 2. Nf3 {[%emt 0:00:00]} Nc6 {[%emt 0:00:05]} 3. d4 {[%emt 0:00:04]} exd4 {[%emt 0:00:08]} 4. Nxd4 {[%emt 0:00:08]} Nf6 {[%emt 0:00:30]} 5. Nc3 {[%emt 0:00:33]} Bb4 {[%emt 0:01:39]} 6. Nxc6 {[%emt 0:00:59]} bxc6 {[%emt 0:00:13]} 7. Bd3 {[%emt 0:00:17]} O-O {[%emt 0:01:44]} 8. O-O {[%emt 0:00:32]} Re8 {[%emt 0:02:25]} 9. Qf3 {[%emt 0:01:43]} h6 {[%emt 0:06:13]} 10. h3 {[%emt 0:00:56]} d5 {[%emt 0:07:44]} 11. exd5 {[%emt 0:03:05]} cxd5 {[%emt 0:18:22]} 12. Na4 {[%emt 0:18:28]} Bb7 {[%emt 0:02:45]} 13. Qg3 {[%emt 0:00:57]} Bd6 {[%emt 0:01:01]} 14. Qf3 {[%emt 0:02:09]} Rb8 {[%emt 0:11:17]} 15. Bd2 {[%emt 0:09:58]} Ne4 {[%emt 0:04:22]} 16. Ba5 {[%emt 0:02:12]} Qg5 $19 {[%emt 0:00:28]} 17. Qg4 {[%emt 0:00:33]} Qe5 {[%emt 0:00:28]} 18. f4 Qd4+ 0-1

[Event "Int SVK-ch Open 2020"]
[Site "Drienica"]
[Date "2020.08.15"]
[Round "7.11"]
[White "Hudak, Vasil"]
[Black "Frink, Ferenc"]
[Result "0-1"]
[ECO "B00"]
[WhiteElo "1997"]
[BlackElo "2075"]
[Annotator "ChessBase"]
[PlyCount "104"]
[EventDate "2020.08.07"]
[EventType "swiss"]
[EventCountry "SVK"]
[TimeControl "40/5400+30:1800+30"]

1. e4 {[%emt 0:00:00]} Nc6 {[%emt 0:00:00]} 2. d4 {[%emt 0:00:09]} e5 {[%emt 0:00:00]} 3. d5 {[%emt 0:01:44]} Nce7 {[%emt 0:00:00]} 4. Nf3 {[%emt 0:04:14]} Ng6 {[%emt 0:00:05]} 5. Bd3 {[%emt 0:01:53]} Bc5 {[%emt 0:00:28]} 6. O-O {[%emt 0:02:48]} Nf6 {[%emt 0:00:20]} 7. Nbd2 {[%emt 0:02:01]} d6 {[%emt 0:00:19]} 8. c3 {[%emt 0:02:11]} O-O {[%emt 0:00:16]} 9. b4 {[%emt 0:00:30]} Bb6 {[%emt 0:00:30]} 10. Nc4 {[%emt 0:00:11]} h6 {[%emt 0:00:00]} 11. Re1 {[%emt 0:04:37]} Bg4 {[%emt 0:02:29]} 12. h3 {[%emt 0:00:43]} Bd7 {[%emt 0:00:14]} 13. a4 {[%emt 0:02:51]} a6 {[%emt 0:00:25]} 14. Nxb6 {[%emt 0:00:19]} cxb6 {[%emt 0:00:02]} 15. Be3 {[%emt 0:05:36]} Nh5 {[%emt 0:00:28]} 16. Kh2 {[%emt 0:02:10]} Nhf4 {[%emt 0:00:09]} 17. Bf1 {[%emt 0:00:11]} Rc8 {[%emt 0:02:54]} 18. Ra3 {[%emt 0:01:01]} b5 {[%emt 0:05:06]} 19. axb5 {[%emt 0:03:14]} Bxb5 {[%emt 0:00:33]} 20. Bxb5 {[%emt 0:00:44]} axb5 {[%emt 0:00:30]} 21. g3 {[%emt 0:00:30]} Nh5 {[%emt 0:08:04]} 22. Nd2 {[%emt 0:02:52]} Nf6 {[%emt 0:00:53]} 23. Qe2 {[%emt 0:00:35]} Qd7 {[%emt 0:00:36]} 24. c4 {[%emt 0:00:42]} bxc4 {[%emt 0:00:41]} 25. Nxc4 {[%emt 0:00:15]} Qb5 {[%emt 0:01:45]} 26. Nxd6 {[%emt 0:09:20]} Qxb4 {[%emt 0:00:08]} 27. Nxc8 {[%emt 0:00:11]} Qxa3 {[%emt 0:00:25]} 28. Qc2 {[%emt 0:00:55]} Nxe4 {[%emt 0:02:23]} 29. Bc1 {[%emt 0:01:07]} Qc5 {[%emt 0:00:11]} 30. Qxc5 {[%emt 0:09:38]} Nxc5 {[%emt 0:00:03]} 31. Nb6 {[%emt 0:00:51]} Nd3 {[%emt 0:00:13]} 32. Rf1 {[%emt 0:00:33]} Rd8 {[%emt 0:00:29]} 33. Ba3 {[%emt 0:00:29]} f5 {[%emt 0:00:26]} 34. f3 {[%emt 0:01:09]} e4 {[%emt 0:00:35]} 35. fxe4 {[%emt 0:00:46]} fxe4 {[%emt 0:00:02]} 36. Rd1 {[%emt 0:00:38]} Nge5 {[%emt 0:00:27]} 37. Be7 {[%emt 0:00:35]} Re8 {[%emt 0:01:01]} 38. d6 {[%emt 0:01:35]} Kf7 {[%emt 0:00:13]} 39. Nd5 {[%emt 0:00:48]} Rc8 {[%emt 0:03:58]} 40. g4 {[%emt 0:06:22]} Ke6 {[%emt 0:02:47]} 41. Nc7+ {[%emt 0:31:14]} Kd7 {[%emt 0:30:07]} 42. Rb1 {[%emt 0:00:15]} Kc6 {[%emt 0:02:25]} 43. Ne6 {[%emt 0:05:38]} g5 {[%emt 0:01:34]} 44. Nd4+ {[%emt 0:01:26]} Kd5 {[%emt 0:00:21]} 45. Nf5 {[%emt 0:05:24]} Ra8 {[%emt 0:05:42]} 46. Nxh6 {[%emt 0:01:39]} Ra2+ {[%emt 0:00:26]} 47. Kg3 {[%emt 0:00:09]} Nf4 {[%emt 0:00:44]} 48. Bxg5 {[%emt 0:01:03]} Ra3+ {[%emt 0:01:33]} 49. Kh2 {[%emt 0:04:38]} Rxh3+ {[%emt 0:08:32]} 50. Kg1 {[%emt 0:00:14]} Nf3+ {[%emt 0:01:18]} 51. Kf2 {[%emt 0:03:27]} Nxg5 {[%emt 0:08:39]} 52. d7 {[%emt 0:02:01]} e3+ {[%emt 0:00:28]} 0-1

[Event "Int SVK-ch Open 2020"]
[Site "Drienica"]
[Date "2020.08.13"]
[Round "7.11"]
[White "Furman, Maximilian Jan"]
[Black "Bujna, Martin"]
[Result "0-1"]
[ECO "C01"]
[WhiteElo "1598"]
[BlackElo "1841"]
[Annotator "NA"]
[PlyCount "68"]
[EventDate "2020.08.07"]
[EventType "swiss"]
[EventCountry "SVK"]
[SourceTitle "playchess.com"]
[Source "ChessBase"]
[SourceQuality "1"]
[TimeControl "40/5400+30:1800+30"]

1. e4 {[%emt 0:00:00]} e6 {[%emt 0:00:00]} 2. d4 {[%emt 0:00:00]} d5 {[%emt 0:00:06]} 3. exd5 {[%emt 0:00:00]} exd5 {[%emt 0:00:16]} 4. Nf3 {[%emt 0:00:01]} Nf6 {[%emt 0:00:35]} 5. Bd3 {[%emt 0:04:47]} Be7 {[%emt 0:00:52]} 6. h3 {[%emt 0:01:37]} Nc6 {[%emt 0:01:05] C01: French: Exchange Variation.} 7. c3 {[%emt 0:00:57]} O-O {[%emt 0:01:36]} 8. O-O {[%emt 0:00:42]} Ne4 {[%emt 0:03:09]} 9. Bf4 {[%emt 0:01:37]} Bd6 {[%emt 0:00:43]} 10. Bxd6 {[%emt 0:05:00]} Qxd6 {[%emt 0:00:12]} 11. Re1 {[%emt 0:01:07]} f5 {[%emt 0:02:33] [#]} 12. Ne5 $146 {[%emt 0:02:45]} ({Predecessor:} 12. Nbd2 Be6 13. a3 a6 14. Nb3 Bf7 15. Qc2 Bh5 16. Nfd2 Rae8 17. Be2 {½-½ (33) Cleuren,B (1671)-Dops,G (1523) Limburg 2007}) 12... Nxe5 {[%emt 0:05:06]} 13. dxe5 {[%emt 0:00:24]} Qb6 {[%emt 0:00:20]} 14. Bxe4 {[%emt 0:14:42]} dxe4 {[%emt 0:00:13]} 15. Qb3+ {[%emt 0:06:22]} Be6 {[%emt 0:00:21]} 16. Qxb6 {[%emt 0:01:59]} axb6 {[%emt 0:00:13]} 17. Na3 {[%emt 0:00:12]} Ra5 {[%emt 0:01:17]} 18. Red1 {[%emt 0:07:31]} Rxe5 {[%emt 0:01:55]} 19. Nc2 {[%emt 0:01:14]} Rd5 {[%emt 0:01:15]} 20. Rxd5 {[%emt 0:06:42]} Bxd5 {[%emt 0:00:11]} 21. b3 {[%emt 0:00:47]} Ra8 {[%emt 0:02:25]} 22. Rd1 {[%emt 0:04:25]} Be6 {[%emt 0:01:16]} 23. Nd4 {[%emt 0:01:22]} Rd8 {[%emt 0:00:27]} 24. Re1 {[%emt 0:02:42]} Kf7 {[%emt 0:04:33]} 25. f3 {[%emt 0:00:37]} c5 {[%emt 0:03:17]} 26. Nxe6 {[%emt 0:00:50]} Kxe6 {[%emt 0:00:08]} 27. fxe4 {[%emt 0:00:13]} f4 {[%emt 0:00:09]} 28. Re2 {[%emt 0:02:32]} Rd3 {[%emt 0:00:11]} 29. c4 {[%emt 0:00:59]} Ke5 {[%emt 0:00:42]} 30. Kf2 {[%emt 0:00:16]} (30. Kf1 {is a better defense.}) 30... h5 {[%emt 0:01:03]} (30... g5 $19 31. Ke1 Re3 32. Rxe3 fxe3) 31. Kf1 $2 {[%emt 0:06:04]} (31. h4 $17) 31... g5 $19 {[%emt 0:00:51]} 32. Kg1 {[%emt 0:07:26]} g4 {[%emt 0:00:28]} 33. hxg4 {[%emt 0:00:11]} hxg4 {[%emt 0:00:08]} 34. Kf2 {[%emt 0:00:04]} g3+ {[%emt 0:00:26]} 0-1